Cogmind - Beta 12 --- EXPLORER MODE // 2023.10.23 @ 21:36:51 Player: viper Result: Destroyed by G-67 Veteran with Plasma Rifle Performance ------------- Evolutions (6) 3000 Regions Visited (14) 2800 Robots Destroyed (171) 855 Value Destroyed (7835) 7835 Prototype IDs (5) 100 Alien Tech Used (0) 0 Bonus (811) 811 TOTAL SCORE: 15401 Bonus ------- Follower Combat Kills 311 Entered DSFs 500 Cogmind --------- Core Integrity 0/1150 Matter 11/300 Energy 1/100 System Corruption 13% Temperature Cool (12) Movement Walking (330) Ox3 Location -3/Proximity Caves Parts ------- > --- POWER (3) -------- (None) > --- PROPULSION (4) --- Myomer Leg > --- UTILITY (9) ------ Advanced Heat Sink Advanced Heat Sink Advanced Cooling System Improved Coolant Injector Advanced Coolant Injector High-capacity Storage Unit Advanced Targeting Computer Advanced Target Analyzer > --- WEAPON (4) ------- Enhanced Gauss Cannon Hardcell Cannon Hardcell Cannon Hardcell Cannon > --- INVENTORY (20) --- Flexi-carbon Leg Flexi-carbon Leg Myomer Leg Myomer Leg Myomer Leg Myomer Leg Heavy Armor Plating Hacking Suite Hardcell Cannon Hardcell Cannon Carbide Saw Peak State ------------ > --- POWER ------------ Light Angular Momentum Engine Light Antimatter Reactor Light Quantum Reactor > --- PROPULSION ------- Aluminum Leg Flexi-carbon Leg Myomer Leg Myomer Leg > --- UTILITY ---------- Improved Coolant Injector Advanced Coolant Injector High-capacity Storage Unit Encrypted Comm Array Improved Targeting Computer Improved Targeting Computer Advanced Targeting Computer Advanced Target Analyzer Precision Energy Filter > --- WEAPON ----------- Coil Gun Coil Gun Coil Gun Railgun > --- INVENTORY -------- Light Antimatter Reactor Light Antimatter Reactor Light Antimatter Reactor Flexi-carbon Leg Flexi-carbon Leg Myomer Leg Myomer Leg Myomer Leg Advanced Heat Sink Advanced Heat Sink Advanced Heat Sink Coolant Injector Enhanced Gauss Cannon Hardcell Cannon Hardcell Cannon Hardcell Cannon Hardcell Cannon Hardcell Cannon Hardcell Cannon Carbide Saw [Rating: 115] Favorites ----------- Power Heavy Ion Engine Engine Heavy Ion Engine Power Core Light Nuclear Core Reactor Light Antimatter Reactor Propulsion Aluminum Leg Leg Aluminum Leg Utility High-capacity Storage Unit Device Advanced Heat Sink Storage High-capacity Storage Unit Processor Improved Targeting Computer Protection Utility Shielding Weapon Coil Gun Ballistic Gun Coil Gun Ballistic Cannon Improved Light Cannon Slashing Weapon Carbide Saw Build | -11 -10 -10 -9 -9 -8 -7 -6 -6 -5 -4 -4 -4 -4 -3 ------- Run | Jun Mat Min Mat Sto Mat Fac Fac DSF Fac Fac Upp Upp Zhi Pro Slots Evolved 13 | . 1 . 2 . 2 2 2 . 2 2 . . . . Power 2 | . 1 . . . . . . . 1 . . . . . Propulsion 2 | . . . . . 2 . . . . . . . . . Utility 7 | . . . 2 . . 2 1 . 1 1 . . . . Weapon 2 | . . . . . . . 1 . . 1 . . . . Parts Attached 186 | 7 7 1 11 5 15 9 2 10 4 61 17 2 . 35 Power 43 | 1 4 1 4 . 3 2 . 2 1 13 4 . . 8 Engine 21 | 1 2 1 4 . 3 1 . 2 1 5 . . . 1 Core 7 | . 2 . . . . 1 . . . 3 . . . 1 Reactor 15 | . . . . . . . . . . 5 4 . . 6 Propulsion 46 | 2 2 . 2 3 6 4 . . 1 12 7 1 . 6 Treads . | . . . . . . . . . . . . . . . Leg 46 | 2 2 . 2 3 6 4 . . 1 12 7 1 . 6 Wheel . | . . . . . . . . . . . . . . . Hover . | . . . . . . . . . . . . . . . Flight . | . . . . . . . . . . . . . . . Utility 49 | 2 1 . 2 1 1 3 1 5 2 15 5 . . 11 Device 31 | . . . 1 . . 2 . 3 2 10 4 . . 9 Storage 3 | 1 1 . . . . . . . . . . . . 1 Processor 8 | 1 . . . 1 . 1 . . . 3 1 . . 1 Hackware . | . . . . . . . . . . . . . . . Protection 7 | . . . 1 . 1 . 1 2 . 2 . . . . Artifact . | . . . . . . . . . . . . . . . Weapon 48 | 2 . . 3 1 5 . 1 3 . 21 1 1 . 10 Energy Gun . | . . . . . . . . . . . . . . . Energy Cannon . | . . . . . . . . . . . . . . . Ballistic Gun 31 | 2 . . 1 . 3 . . 3 . 15 1 1 . 5 Ballistic Cannon 16 | . . . 2 1 2 . 1 . . 5 . . . 5 Launcher . | . . . . . . . . . . . . . . . Special Weapon . | . . . . . . . . . . . . . . . Impact Weapon . | . . . . . . . . . . . . . . . Slashing Weapon 1 | . . . . . . . . . . 1 . . . . Piercing Weapon . | . . . . . . . . . . . . . . . Special Melee Weapon . | . . . . . . . . . . . . . . . Unidentified Prototypes 3 | . . . 1 . 1 . . . . . . . . 1 Parts Lost 81 | . . 1 3 . 6 . . 4 . 38 4 . . 25 Power 20 | . . 1 1 . 1 . . . . 8 . . . 9 Propulsion 16 | . . . 2 . 2 . . . . 7 2 . . 3 Utility 23 | . . . . . 1 . . 4 . 10 2 . . 6 Weapon 22 | . . . . . 2 . . . . 13 . . . 7 Highest Loss Streak 13 | . . 1 3 . 3 . . 3 . 13 4 . . 11 To Critical Strikes 4 | . . . . . 1 . . . . 2 . . . 1 Average Slot Usage (%) 98 | . 99 99 99 99 93 100 100 97 96 94 99 100 100 98 Engine 11 | . 16 13 19 20 14 11 6 7 16 6 5 5 5 1 Core 2 | . 7 10 . . . 2 6 4 . 1 1 . . 2 Reactor 3 | . . . . . . . . . . 5 8 10 10 9 Leg 22 | . 24 25 20 19 28 28 25 25 22 18 19 20 20 19 Device 12 | . . . 10 10 6 7 6 13 18 19 24 25 25 20 Storage 7 | . 12 12 10 10 8 7 6 6 5 5 5 5 5 5 Processor 13 | . 12 12 10 10 8 14 12 12 11 15 15 15 15 18 Protection 4 | . . . 10 10 8 14 18 8 5 3 . . . . Ballistic Gun 13 | . 25 25 14 . 4 . . 10 16 16 20 20 20 13 Ballistic Cannon 6 | . . . 5 19 11 14 18 7 . 2 . . . 6 Naked Turns . | . . . . . . . . . . . . . . . Heaviest Build 109 | 17 52 52 66 66 69 73 79 79 89 109 105 105 105 109 Greatest Support 90 | 20 20 20 20 20 42 73 73 73 73 90 90 90 90 90 Greatest Overweight (x) 6 | 3 2 2 3 6 2 2 1 1 1 1 2 1 1 2 Average Overweight (x) 1 | . 1 2 2 3 1 . 1 . 1 1 1 1 1 1 Largest Inventory Capacity 20 | 10 20 20 20 20 20 20 20 20 20 20 20 20 20 20 Average Capacity 19 | 8 19 20 20 20 20 20 20 20 20 20 20 20 20 20 Most Carried 20 | 4 10 12 11 17 20 20 18 20 20 20 20 20 20 20 Average Carried 15 | 1 8 11 9 14 18 19 17 18 19 17 19 20 20 17 Final Capacity 20 | 10 20 20 20 20 20 20 20 20 20 20 20 20 20 20 Final Carried 20 | 4 10 11 11 17 19 19 17 20 20 19 20 20 20 12 Class Distribution -------------------- 45% | Hacker-Mutant 35% | Scavenger-Gunner 9% | Commander-Mutant 9% | Hacker-Gunner Dominant Class ---------------- Hacker-Mutant | -10/Materials Hacker-Mutant | -10/Mines Hacker-Mutant | -9/Materials Commander-Mutant | -9/Storage Hacker-Mutant | -8/Materials Hacker-Mutant | -7/Factory Hacker-Mutant | -6/Factory Hacker-Gunner | -6/DSF Hacker-Gunner | -5/Factory Scavenger-Gunner | -4/Factory Scavenger-Gunner | -4/Upper Caves Scavenger-Gunner | -4/Upper Caves Scavenger-Gunner | -4/Zhirov Scavenger-Gunner | -3/Proximity Caves Resources | -11 -10 -10 -9 -9 -8 -7 -6 -6 -5 -4 -4 -4 -4 -3 ----------- Run | Jun Mat Min Mat Sto Mat Fac Fac DSF Fac Fac Upp Upp Zhi Pro Matter Collected 6470 | 203 207 6 344 167 787 250 . 523 148 1941 662 87 . 1145 Remotely 960 | . . . . . . . . 383 148 429 . . . . Salvage Created 8125 | . 416 26 742 210 835 276 . 470 279 2257 1018 143 . 1453 Parts 389 | . 22 4 38 18 48 16 . 14 15 111 43 5 . 55 Haulers Intercepted 9 | . . . 3 1 2 . . 1 . 1 . . . 1 Recyclers Shooed 5 | . 1 . 2 . . . . . . 2 . . . . Parts Field Recycled . | . . . . . . . . . . . . . . . Retrieved Matter . | . . . . . . . . . . . . . . . Parts Self-Destructed . | . . . . . . . . . . . . . . . Prevented . | . . . . . . . . . . . . . . . Kills | -11 -10 -10 -9 -9 -8 -7 -6 -6 -5 -4 -4 -4 -4 -3 ------- Run | Jun Mat Min Mat Sto Mat Fac Fac DSF Fac Fac Upp Upp Zhi Pro Combat Hostiles Destroyed 123 | . 6 2 6 5 19 4 . 10 4 28 16 2 . 21 Melee 2 | . . . . . . . . . . 2 . . . . Guns 79 | . 6 2 5 . 6 . . 4 4 22 16 2 . 12 Cannons 41 | . . . 1 5 13 4 . 5 . 4 . . . 9 Classes Destroyed 18 | . 4 . 5 1 2 1 . 2 . 3 . . . . Worker 6 | . . . 2 . 3 . . . 1 . . . . . Builder 5 | . . . . 1 1 . . . . 3 . . . . Tunneler 1 | . . . 1 . . . . . . . . . . . Hauler 9 | . . . 3 1 2 . . 1 . 1 . . . 1 Recycler 8 | . 2 . 4 . . 1 . . . 1 . . . . Mechanic 1 | . . . . . . . . . . 1 . . . . Operator 1 | . . . . . . . . . . 1 . . . . Watcher 17 | . 2 . 2 . 5 3 . . 1 4 . . . . Swarmer 9 | . 2 2 . . . . . . . 1 2 . . 2 Grunt 49 | . 4 . 2 2 12 1 . 3 4 5 8 . . 8 Brawler 4 | . . . . . 1 1 . . . . . . . 2 Duelist 7 | . . . 1 . 2 . . 2 . 1 . . . 1 Sentry 18 | . . . 3 3 3 1 . . . 4 2 . . 2 Specialist 2 | . . . . . . . . 2 . . . . . . Hunter 16 | . . . . . 1 . . 2 . 5 2 2 . 4 Programmer 14 | . . . . . . 1 . . . 10 2 . . 1 Heavy 1 | . . . . . . . . 1 . . . . . . Behemoth 3 | . . . . . . . . . . 2 . . . 1 Best Kill Streak 7 | . 5 2 3 2 5 2 . 3 3 6 5 2 . 7 Combat Bots Only 7 | . 4 2 1 2 4 2 . 3 2 6 5 2 . 7 Max Kills in Single Turn 3 | . 1 1 1 1 1 1 . 1 1 3 1 1 . 2 Gunslinging . | . . . . . . . . . . . . . . . Exploded . | . . . . . . . . . . . . . . . Melee 1 | . . . . . . . . . . 1 . . . . Uniques/NPCs Destroyed . | . . . . . . . . . . . . . . . Combat | -11 -10 -10 -9 -9 -8 -7 -6 -6 -5 -4 -4 -4 -4 -3 -------- Run | Jun Mat Min Mat Sto Mat Fac Fac DSF Fac Fac Upp Upp Zhi Pro Damage Taken 12482 | . 130 305 393 37 1060 74 . 867 84 4728 724 90 . 3990 Core 1658 | . 36 70 110 9 141 9 . 121 11 514 40 . . 597 Absorbed by Shields . | . . . . . . . . . . . . . . . Redirected to Shielding 427 | . . . 9 . 14 9 . 221 8 166 . . . . Regen/Repaired (Parts) 121 | . 70 . . . . . . . 51 . . . . . Core Remaining (%) 83 | 100 . 57 . 70 74 98 . 85 98 . . . . . Volleys Fired 450 | . 35 7 67 16 90 16 . 30 9 98 26 3 . 53 Largest 4 | . 2 2 2 2 2 2 . 3 3 4 4 4 . 4 Hottest 252 | . 40 40 78 78 88 88 . 132 99 154 125 125 . 252 Shots Fired 1287 | . 70 14 133 32 178 32 . 90 27 385 105 12 . 209 Gun 894 | . 70 14 101 . 58 . . 33 27 329 105 12 . 145 Cannon 393 | . . . 32 32 120 32 . 57 . 56 . . . 64 Launcher . | . . . . . . . . . . . . . . . Special . | . . . . . . . . . . . . . . . Kinetic 1287 | . 70 14 133 32 178 32 . 90 27 385 105 12 . 209 Thermal . | . . . . . . . . . . . . . . . Explosive . | . . . . . . . . . . . . . . . Electromagnetic . | . . . . . . . . . . . . . . . Robot Hit Streak 80 | . 41 5 23 14 30 10 . 38 15 80 29 12 . 73 Robot Miss Streak 3 | . 3 1 2 1 2 1 . 1 1 2 1 . . 2 Penetration Max 1 | . . . . . . . . 1 1 1 1 . . 1 Secondary Targets 18 | . . . . . 1 . . 1 1 4 7 . . 4 Max Gunslinging Chain 1 | . . . . . 1 . . 1 1 1 1 . . 1 Shots Hit Robots 1056 | . 54 11 108 24 150 24 . 77 24 324 85 8 . 167 Core Hits 398 | . 21 6 40 7 58 15 . 25 14 111 39 5 . 57 Critical Kills 12 | . . . . . . . . . . 3 3 . . 6 Critical Parts Destroyed 18 | . . . . . . . . . 1 10 1 . . 6 Critical Strikes 59 | . . . 1 . 1 . . 2 1 19 5 . . 30 Destroy 41 | . . . . . . . . . 1 15 5 . . 20 Blast 15 | . . . 1 . 1 . . 2 . 1 . . . 10 Sever 3 | . . . . . . . . . . 3 . . . . Melee Attacks 7 | . . . . . . . . . . 7 . . . . Impact . | . . . . . . . . . . . . . . . Slashing 7 | . . . . . . . . . . 7 . . . . Piercing . | . . . . . . . . . . . . . . . Sneak Attacks . | . . . . . . . . . . . . . . . Combat Hostiles . | . . . . . . . . . . . . . . . Follow-up Attacks . | . . . . . . . . . . . . . . . Damage Inflicted 22723 | . 437 82 1245 525 2751 593 . 1803 821 7763 2033 145 . 4525 Guns 14991 | . 437 82 731 . 713 . . 728 811 6544 2033 145 . 2767 Cannons 7561 | . . . 506 525 2038 593 . 1075 . 1066 . . . 1758 Explosions . | . . . . . . . . . . . . . . . Melee 141 | . . . . . . . . . . 141 . . . . Ramming 30 | . . . 8 . . . . . 10 12 . . . . Kinetic 22552 | . 437 82 1237 525 2751 593 . 1803 811 7610 2033 145 . 4525 Thermal . | . . . . . . . . . . . . . . . Explosive . | . . . . . . . . . . . . . . . Electromagnetic . | . . . . . . . . . . . . . . . Impact . | . . . . . . . . . . . . . . . Slashing 141 | . . . . . . . . . . 141 . . . . Piercing . | . . . . . . . . . . . . . . . Highest Corruption 13 | . . . . . . 1 . . . 10 11 11 11 13 Average Corruption 8 | . . . . . . 1 . . . 2 10 11 11 11 Corruption Purged . | . . . . . . . . . . . . . . . Corruption Blocked . | . . . . . . . . . . . . . . . Effects 143 | . . . . . . 3 . . . 21 36 16 1 66 Message Errors 27 | . . . . . . . . . . 5 5 4 1 12 Matter Fused 39 | . . . . . . 1 . . . 4 11 4 . 19 Heat Flow Errors 12 | . . . . . . 1 . . . 1 2 3 . 5 Energy Discharges 23 | . . . . . . . . . . 1 6 3 . 13 Parts Rejected 1 | . . . . . . . . . . . . . . 1 Parts Fused 1 | . . . . . . . . . . . . . . 1 Data Loss (minor) 15 | . . . . . . 1 . . . 4 3 1 . 6 Data Loss (major) 7 | . . . . . . . . . . 2 3 1 . 1 Misfires 9 | . . . . . . . . . . 3 3 . . 3 Alerts 1 | . . . . . . . . . . . 1 . . . Weapon Failures 8 | . . . . . . . . . . 1 2 . . 5 Overload Shots . | . . . . . . . . . . . . . . . Overflow Damage 57 | . . . 12 16 . 13 . 5 . . . . . 11 Projectiles 57 | . . . 12 16 . 13 . 5 . . . . . 11 Explosions . | . . . . . . . . . . . . . . . Melee . | . . . . . . . . . . . . . . . Knockbacks 57 | . . . 1 3 23 6 . 6 . 10 . . . 8 Impact . | . . . . . . . . . . . . . . . Kinetic 53 | . . . 1 3 23 6 . 6 . 8 . . . 6 Secondary 4 | . . . . . . . . . . 2 . . . 2 Self-Inflicted Damage . | . . . . . . . . . . . . . . . Shots . | . . . . . . . . . . . . . . . Rammed . | . . . . . . . . . . . . . . . Targets Rammed 4 | . . . 1 . . . . . 1 2 . . . . Kicked 4 | . . . 1 . . . . . 1 2 . . . . Crushed . | . . . . . . . . . . . . . . . Highest Temperature 199 | . 111 29 5 5 30 148 . 199 85 160 199 158 . 198 Average Temperature 63 | . 34 14 3 3 12 80 . 115 32 57 81 44 . 73 Received Heat Transfer 3157 | . 102 . 147 18 909 15 . 180 63 506 250 . . 967 Siege Activations . | . . . . . . . . . . . . . . . Robots Corrupted . | . . . . . . . . . . . . . . . Combat Hostiles . | . . . . . . . . . . . . . . . Parts Fried . | . . . . . . . . . . . . . . . Impact Corruptions 1 | . . . . . . . . . . . . . . 1 Robots Melted . | . . . . . . . . . . . . . . . Combat Hostiles . | . . . . . . . . . . . . . . . Parts Melted 10 | . . . . . . . . 9 . . 1 . . . Heat Transferred . | . . . . . . . . . . . . . . . Parts Sabotaged . | . . . . . . . . . . . . . . . Parts Stolen . | . . . . . . . . . . . . . . . Parts Stripped . | . . . . . . . . . . . . . . . Power Chain Reactions . | . . . . . . . . . . . . . . . Missiles Intercepted . | . . . . . . . . . . . . . . . Alert | -11 -10 -10 -9 -9 -8 -7 -6 -6 -5 -4 -4 -4 -4 -3 ------- Run | Jun Mat Min Mat Sto Mat Fac Fac DSF Fac Fac Upp Upp Zhi Pro Peak Influence 296 | . 165 50 140 295 296 179 . 209 223 252 . . . . Initial 92 | . . . . 31 31 92 . . 81 79 . . . . Average 70 | . 30 18 63 65 129 85 . 101 114 98 . . . . Maximum Alert Level 1 | . . . . 1 1 . . 1 1 1 . . . . Low Security (%) 94 | 100 100 100 100 95 72 100 100 92 91 90 . . . . Level 1 5 | . . . . 4 27 . . 7 8 9 . . . . Level 2 . | . . . . . . . . . . . . . . . Level 3 . | . . . . . . . . . . . . . . . Level 4 . | . . . . . . . . . . . . . . . Level 5 . | . . . . . . . . . . . . . . . High Security . | . . . . . . . . . . . . . . . Max Security . | . . . . . . . . . . . . . . . Sterilizations 1 | . . . . . . . . 1 . . . . . . Squads Dispatched 19 | . . . . 2 3 2 . 2 2 7 . . . 1 Investigation 2 | . . . . . . . . . . 2 . . . . Extermination 5 | . . . . . . 2 . . . 3 . . . . Reinforcement 10 | . . . . 2 3 . . 2 1 2 . . . . Assault 1 | . . . . . . . . . . . . . . 1 Garrison 1 | . . . . . . . . . 1 . . . . . Intercept . | . . . . . . . . . . . . . . . Searches Triggered . | . . . . . . . . . . . . . . . Construction Impeded 1 | . . . . . . . . . . 1 . . . . Haulers Reinforced . | . . . . . . . . . . . . . . . Active Scanning Responses . | . . . . . . . . . . . . . . . Cargo Convoy Interrupts . | . . . . . . . . . . . . . . . Stealth | -11 -10 -10 -9 -9 -8 -7 -6 -6 -5 -4 -4 -4 -4 -3 --------- Run | Jun Mat Min Mat Sto Mat Fac Fac DSF Fac Fac Upp Upp Zhi Pro Distress Signals 12 | . . . 1 2 5 . . . . 4 . . . . Communications Jammed . | . . . . . . . . . . . . . . . Distress Signals . | . . . . . . . . . . . . . . . Times Spotted 195 | . 13 4 13 18 34 7 . 10 8 39 18 2 . 29 Peak Tracking Total 8 | . 2 2 3 3 5 2 . 3 3 7 5 2 . 8 Tactical Retreats 2 | . . . . . 1 . . . 1 . . . . . Traps | -11 -10 -10 -9 -9 -8 -7 -6 -6 -5 -4 -4 -4 -4 -3 ------- Run | Jun Mat Min Mat Sto Mat Fac Fac DSF Fac Fac Upp Upp Zhi Pro Traps Triggered 6 | . . . . 1 1 . . . . 4 . . . . Indirectly . | . . . . . . . . . . . . . . . Trap Hack Attempts . | . . . . . . . . . . . . . . . Triggered . | . . . . . . . . . . . . . . . Disarmed 1 | . 1 . . . . . . . . . . . . . Reprogrammed . | . . . . . . . . . . . . . . . Reused . | . . . . . . . . . . . . . . . Traps Extracted . | . . . . . . . . . . . . . . . Installed . | . . . . . . . . . . . . . . . Triggered 2 | . . . . . . . . . . . . 2 . . Machines | -11 -10 -10 -9 -9 -8 -7 -6 -6 -5 -4 -4 -4 -4 -3 ---------- Run | Jun Mat Min Mat Sto Mat Fac Fac DSF Fac Fac Upp Upp Zhi Pro Machines Disabled 7 | . . . . 1 1 . . 1 1 2 . . . 1 Max in Single Turn 1 | . . . . 1 1 . . 1 1 1 . . . 1 Machines Repaired . | . . . . . . . . . . . . . . . Machines Sabotaged . | . . . . . . . . . . . . . . . Overloaded Fab Kills . | . . . . . . . . . . . . . . . Hacking | -11 -10 -10 -9 -9 -8 -7 -6 -6 -5 -4 -4 -4 -4 -3 --------- Run | Jun Mat Min Mat Sto Mat Fac Fac DSF Fac Fac Upp Upp Zhi Pro Machines Accessed 15 | . 4 . . 6 1 . 1 . 1 2 . . . . Terminals 13 | . 3 . . 6 1 . 1 . . 2 . . . . Fabricators . | . . . . . . . . . . . . . . . Repair Stations 2 | . 1 . . . . . . . 1 . . . . . Recycling Units . | . . . . . . . . . . . . . . . Scanalyzers . | . . . . . . . . . . . . . . . Garrison Access . | . . . . . . . . . . . . . . . Total Hacks 38 | . 14 . . 11 3 . 2 . 2 6 . . . . Successful 32 | . 11 . . 9 3 . 1 . 2 6 . . . . Failed 6 | . 3 . . 2 . . 1 . . . . . . . Catastrophic . | . . . . . . . . . . . . . . . Database Lockouts . | . . . . . . . . . . . . . . . Manual 2 | . . . . 2 . . . . . . . . . . Terminals 30 | . 8 . . 11 3 . 2 . . 6 . . . . Fabricators . | . . . . . . . . . . . . . . . Repair Stations 8 | . 6 . . . . . . . 2 . . . . . Recycling Units . | . . . . . . . . . . . . . . . Scanalyzers . | . . . . . . . . . . . . . . . Garrison Access . | . . . . . . . . . . . . . . . Terminal Hacks 24 | . 5 . . 9 3 . 1 . . 6 . . . . Record 8 | . . . . . 2 . . . . 6 . . . . Part Schematic 1 | . . . . 1 . . . . . . . . . . Prototype ID Bank 1 | . . . . . 1 . . . . . . . . . Open Door 2 | . . . . 2 . . . . . . . . . . Open DSF 1 | . . . . . . . 1 . . . . . . . Emergency Access Points 1 | . 1 . . . . . . . . . . . . . Locate Traps 5 | . 2 . . 3 . . . . . . . . . . Disarm Traps 1 | . 1 . . . . . . . . . . . . . Reinforcement Status 1 | . . . . 1 . . . . . . . . . . Recall Reinforcements 1 | . . . . 1 . . . . . . . . . . Zone Layout 2 | . 1 . . 1 . . . . . . . . . . Fabricator Hacks . | . . . . . . . . . . . . . . . Repair Station Hacks 8 | . 6 . . . . . . . 2 . . . . . Scan Component 4 | . 3 . . . . . . . 1 . . . . . Repair 4 | . 3 . . . . . . . 1 . . . . . Recycling Unit Hacks . | . . . . . . . . . . . . . . . Scanalyzer . | . . . . . . . . . . . . . . . Garrison Access Hacks . | . . . . . . . . . . . . . . . Unauthorized Hacks . | . . . . . . . . . . . . . . . Terminals . | . . . . . . . . . . . . . . . Fabricators . | . . . . . . . . . . . . . . . Repair Stations . | . . . . . . . . . . . . . . . Recycling Units . | . . . . . . . . . . . . . . . Scanalyzers . | . . . . . . . . . . . . . . . Garrison Access . | . . . . . . . . . . . . . . . Data Cores Recovered 1 | . . . . 1 . . . . . . . . . . Used . | . . . . . . . . . . . . . . . Hacking Detections 8 | . 2 . . 3 1 . . . . 2 . . . . Full Trace Events 4 | . 1 . . . 1 . . . . 2 . . . . Feedback Events 1 | . . . . . . . . . . 1 . . . . Corruption 1 | . . . . . . . . . . 1 . . . . Feedback Blocked . | . . . . . . . . . . . . . . . Robot Schematics Acquired . | . . . . . . . . . . . . . . . Robots Built . | . . . . . . . . . . . . . . . Authchips . | . . . . . . . . . . . . . . . Time . | . . . . . . . . . . . . . . . Total Robot Build Rating . | . . . . . . . . . . . . . . . Part Schematics Acquired 1 | . . . . 1 . . . . . . . . . . Parts Built . | . . . . . . . . . . . . . . . Authchips . | . . . . . . . . . . . . . . . Time . | . . . . . . . . . . . . . . . Total Part Build Rating . | . . . . . . . . . . . . . . . Parts Repaired 4 | . 3 . . . . . . . 1 . . . . . Time 134 | . 90 . . . . . . . 44 . . . . . Parts Recycled . | . . . . . . . . . . . . . . . Recycled Matter . | . . . . . . . . . . . . . . . Retrieved Matter . | . . . . . . . . . . . . . . . Retrieved Components . | . . . . . . . . . . . . . . . Parts Scanalyzed . | . . . . . . . . . . . . . . . Part Schematics Acquired . | . . . . . . . . . . . . . . . Parts Damaged . | . . . . . . . . . . . . . . . Bothacking | -11 -10 -10 -9 -9 -8 -7 -6 -6 -5 -4 -4 -4 -4 -3 ------------ Run | Jun Mat Min Mat Sto Mat Fac Fac DSF Fac Fac Upp Upp Zhi Pro Used RIF Installer . | . . . . . . . . . . . . . . . Robots Hacked . | . . . . . . . . . . . . . . . Non-combat . | . . . . . . . . . . . . . . . Combat . | . . . . . . . . . . . . . . . Robot Hacks Applied . | . . . . . . . . . . . . . . . Relay Couplers Released . | . . . . . . . . . . . . . . . Fabnet Peak Effective % . | . . . . . . . . . . . . . . . Robots Rewired . | . . . . . . . . . . . . . . . Allies Hacked . | . . . . . . . . . . . . . . . Hacks Repelled . | . . . . . . . . . . . . . . . Allies | -11 -10 -10 -9 -9 -8 -7 -6 -6 -5 -4 -4 -4 -4 -3 -------- Run | Jun Mat Min Mat Sto Mat Fac Fac DSF Fac Fac Upp Upp Zhi Pro Total Allies 10 | . . . . 10 . . . . . . . . . . Largest Group 10 | . . . . 10 3 . . . . . . . . . Highest-Rated Group 88 | . . . . 88 22 . . . . . . . . . Highest-Rated Ally 16 | . . . . 16 8 . . . . . . . . . Total Orders . | . . . . . . . . . . . . . . . Ally Attacks 123 | . . . . 106 17 . . . . . . . . . Total Damage 1162 | . . . . 1009 153 . . . . . . . . . Kills 17 | . . . . 17 . . . . . . . . . . Allies Corrupted . | . . . . . . . . . . . . . . . Allies Melted . | . . . . . . . . . . . . . . . Intel | -11 -10 -10 -9 -9 -8 -7 -6 -6 -5 -4 -4 -4 -4 -3 ------- Run | Jun Mat Min Mat Sto Mat Fac Fac DSF Fac Fac Upp Upp Zhi Pro Robot Analysis Total . | . . . . . . . . . . . . . . . Derelict Logs Recovered 1 | . . . . . . . . . . . 1 . . . Drone Launches . | . . . . . . . . . . . . . . . Drone Recoveries . | . . . . . . . . . . . . . . . Exploration | -11 -10 -10 -9 -9 -8 -7 -6 -6 -5 -4 -4 -4 -4 -3 ------------- Run | Jun Mat Min Mat Sto Mat Fac Fac DSF Fac Fac Upp Upp Zhi Pro Turns Passed 11333 | 77 1511 806 646 1577 775 808 16 400 286 1555 890 365 37 1584 Spaces Moved 4119 | 59 461 287 156 448 245 346 8 148 95 573 398 186 20 689 Core 26 | 26 . . . . . . . . . . . . . . Treads . | . . . . . . . . . . . . . . . Legs 4093 | 33 461 287 156 448 245 346 8 148 95 573 398 186 20 689 Wheels . | . . . . . . . . . . . . . . . Hover . | . . . . . . . . . . . . . . . Flight . | . . . . . . . . . . . . . . . Fastest Speed 50 | 50 120 260 260 330 187 125 195 125 195 186 190 190 190 190 Average Speed 218 | 99 258 260 276 331 196 165 195 190 195 190 190 190 190 190 Slowest Speed 540 | 200 260 260 330 540 265 262 195 195 196 195 263 190 190 260 Overloaded Moves . | . . . . . . . . . . . . . . . Propulsion Burnouts . | . . . . . . . . . . . . . . . Robots Hopped . | . . . . . . . . . . . . . . . Cave-ins Triggered . | . . . . . . . . . . . . . . . Exploration Rate (%) 36 | 5 73 60 17 66 29 9 1 95 4 15 53 35 14 72 Regions Visited 14 Branch Regions 6 Pre-discovered Areas 2 | . . . . . . . . . . . 2 . . . Known Exits Taken 13 | 1 1 1 1 1 1 1 1 . 1 1 1 1 1 . Unknown Exits Taken . | . . . . . . . . . . . . . . . Scrap Searched 2 | . . . . . . . . . . . 1 . . 1 Spaces Dug . | . . . . . . . . . . . . . . . Terrain Destroyed 68 | . . . . 1 4 2 . 1 2 27 2 5 . 24 Melee . | . . . . . . . . . . . . . . . Projectile 68 | . . . . 1 4 2 . 1 2 27 2 5 . 24 AOE . | . . . . . . . . . . . . . . . Terrain Rammed . | . . . . . . . . . . . . . . . Walls Destroyed . | . . . . . . . . . . . . . . . Machines Disabled . | . . . . . . . . . . . . . . . Actions | -11 -10 -10 -9 -9 -8 -7 -6 -6 -5 -4 -4 -4 -4 -3 --------- Run | Jun Mat Min Mat Sto Mat Fac Fac DSF Fac Fac Upp Upp Zhi Pro Total 5456 | 74 723 337 255 508 359 553 9 197 173 769 465 192 19 823 Wait 612 | 5 216 41 17 36 . 172 . . 65 10 15 . . 35 Move 4105 | 58 460 286 155 447 244 345 7 147 94 572 397 185 19 689 Hop . | . . . . . . . . . . . . . . . Pick Up 57 | 4 5 2 4 4 8 3 . 7 . 15 2 . . 3 Fast Attach 31 | 7 3 . . 2 . . . . 2 13 . . . 4 Attach 78 | . 1 1 6 . 8 2 2 4 1 31 4 . . 18 Detach 2 | . . . . . . . . . . 2 . . . . Swap 77 | . 3 . 5 3 7 7 . 6 1 17 13 2 . 13 Drop 33 | . . . . . 2 8 . 3 . 2 8 2 . 8 Fire 450 | . 35 7 67 16 90 16 . 30 9 98 26 3 . 53 Melee 7 | . . . . . . . . . . 7 . . . . Ram . | . . . . . . . . . . . . . . . Kick 4 | . . . 1 . . . . . 1 2 . . . . Crush . | . . . . . . . . . . . . . . . Escape Stasis . | . . . . . . . . . . . . . . . Rewire . | . . . . . . . . . . . . . . . Trap . | . . . . . . . . . . . . . . . Miscellaneous . | . . . . . . . . . . . . . . . Route ------- -11/Junkyard -10/Materials (discovered 3 exits: *Mat x2 / *Min) -10/Mines (discovered 2 exits: *Mat x2) -9/Materials -9/Storage -8/Materials -7/Factory -6/Factory -6/DSF -5/Factory -4/Factory -4/Upper Caves -4/Upper Caves -4/Zhirov -3/Proximity Caves History --------- Turn | Location | Event 10 | -11/Junkyard | Identified exit to Materials 10 | -11/Junkyard | Discovered exit to Materials (range 15) 78 | -11/Junkyard | Entered Materials 78 | -10/Materials | Evolved 1 slot: Power x1 315 | -10/Materials | Build established: Hacker-Mutant 385 | -10/Materials | Identified exit to Materials 385 | -10/Materials | Discovered exit to Materials (range 11) 807 | -10/Materials | Discovered exit to Materials (range 14) 942 | -10/Materials | Repaired Ion Engine 982 | -10/Materials | Repaired Lgt. Nuclear Core 1009 | -10/Materials | Repaired Aluminum Leg 1574 | -10/Materials | Identified exit to Mines 1574 | -10/Materials | Discovered exit to Mines (range 6) 1589 | -10/Materials | Entered Mines 2132 | -10/Mines | Discovered exit to Materials (range 8) 2155 | -10/Mines | Discovered exit to Materials (range 9) 2231 | -10/Mines | Assembled infested the area 2236 | -10/Mines | Assisted by a Guerilla fighting off Assembled 2395 | -10/Mines | Entered Materials 2395 | -9/Materials | Evolved 2 slots: Utility x2 2721 | -9/Materials | Lost 3 parts (1p2n) 2967 | -9/Materials | Identified exit to Storage 2967 | -9/Materials | Discovered exit to Storage (range 15) 3041 | -9/Materials | Entered Storage 3325 | -9/Storage | Assisted by bots powering up and referring to "LRC-V3" 3615 | -9/Storage | Build established: Commander-Mutant 4481 | -9/Storage | Identified exit to Materials 4481 | -9/Storage | Discovered exit to Materials (range 15) 4618 | -9/Storage | Entered Materials 4618 | -8/Materials | Accompanied by 3 allies 4618 | -8/Materials | Evolved 2 slots: Propulsion x2 4716 | -8/Materials | Build established: Hacker-Mutant 5171 | -8/Materials | Lost 3 parts (1n2w) 5236 | -8/Materials | Identified exit to Factory 5236 | -8/Materials | Discovered exit to Factory (range 11) 5393 | -8/Materials | Entered Factory 5393 | -7/Factory | Evolved 2 slots: Utility x2 6008 | -7/Factory | Identified exit to Factory 6008 | -7/Factory | Discovered exit to Factory (range 16) 6201 | -7/Factory | Entered another Factory area 6201 | -6/Factory | Evolved 2 slots: Utility x1, Weapon x1 6211 | -6/Factory | Identified exit to DSF 6217 | -6/Factory | Entered DSF 6276 | -6/DSF | Additional patrols routed to DSF 6388 | -6/DSF | Lost 3 parts (3u) 6488 | -6/DSF | Sterilization system engaged 6508 | -6/DSF | Ambient heat levels rising (+10) 6516 | -6/DSF | Build established: Hacker-Gunner 6523 | -6/DSF | Ambient heat levels rising (+10) 6538 | -6/DSF | Ambient heat levels rising (+10) 6553 | -6/DSF | Ambient heat levels rising (+10) 6568 | -6/DSF | Ambient heat levels rising (+10) 6583 | -6/DSF | Ambient heat levels rising (+10) 6588 | -6/DSF | Identified exit to Factory 6588 | -6/DSF | Discovered exit to Factory (range 15) 6598 | -6/DSF | Ambient heat levels rising (+10) 6613 | -6/DSF | Ambient heat levels rising (+10) 6617 | -6/DSF | Entered Factory 6617 | -5/Factory | Evolved 2 slots: Power x1, Utility x1 6717 | -5/Factory | Repaired Coolant Injector 6872 | -5/Factory | Identified exit to Factory 6872 | -5/Factory | Discovered exit to Factory (range 14) 6878 | -5/Factory | Garrison activated, responded to threat 6903 | -5/Factory | Entered another Factory area 6903 | -4/Factory | Evolved 2 slots: Utility x1, Weapon x1 7148 | -4/Factory | Spotted B-86 Titan 7243 | -4/Factory | Destroyed B-86 Titan 7283 | -4/Factory | Lost 13 parts (3p3n4u3w) 7562 | -4/Factory | Build established: Scavenger-Gunner 7794 | -4/Factory | Lost 5 parts (3n1u1w) 7906 | -4/Factory | Spotted B-86 Titan 7954 | -4/Factory | Destroyed B-86 Titan 7973 | -4/Factory | Lost 6 parts (2p2u2w) 8071 | -4/Factory | Lost 8 parts (2p1n5w) 8400 | -4/Factory | System corruption reached 10% 8448 | -4/Factory | Identified exit to Upper Caves 8448 | -4/Factory | Discovered exit to Upper Caves (range 7) 8458 | -4/Factory | Entered Upper Caves 8459 | -4/Upper Caves | Encountered a Warlord checkpoint 8486 | -4/Upper Caves | Met a Warlord Commander 8510 | -4/Upper Caves | Found Encrypted Comm Array 8640 | -4/Upper Caves | Lost 4 parts (2n2u) 8837 | -4/Upper Caves | Attracted the attention of an 0b10 checkpoint 9159 | -4/Upper Caves | Attracted the attention of an 0b10 outpost 9304 | -4/Upper Caves | Identified exit to Upper Caves 9304 | -4/Upper Caves | Discovered exit to Upper Caves (range 12) 9348 | -4/Upper Caves | Entered another Upper Caves area 9693 | -4/Upper Caves | Identified exit to Zhirov 9693 | -4/Upper Caves | Discovered exit to Zhirov (range 12) 9713 | -4/Upper Caves | Entered Zhirov 9713 | -4/Zhirov | Identified exit to Proximity Caves 9713 | -4/Zhirov | Discovered exit to Proximity Caves (range 3) 9750 | -4/Zhirov | Entered Proximity Caves 9875 | -3/Proximity Caves | Core integrity fell below 50% 9932 | -3/Proximity Caves | Lost 5 parts (1p1n1u2w) 9935 | -3/Proximity Caves | Destroyed 7 combat bots 10117 | -3/Proximity Caves | Attracted the attention of an 0b10 checkpoint 10313 | -3/Proximity Caves | Spotted B-86 Titan 10364 | -3/Proximity Caves | Destroyed B-86 Titan 10393 | -3/Proximity Caves | Lost 8 parts (3p3u2w) 11262 | -3/Proximity Caves | Attracted the attention of an 0b10 outpost 11284 | -3/Proximity Caves | Core integrity fell below 20% 11334 | -3/Proximity Caves | Destroyed by G-67 Veteran with Plasma Rifle Last Messages --------------- 11316_ G-73 Enforcer knocked back. 11316_ Destroyed Field Laser. 11316_ G-67 Veteran system corrupted by crushing effect. 11316_ M-36 Artificer fits Backup Propulsion VII on Y-72 Warden. 11318_ 3EKOQHVI:MZIG69#PMFFLMGE:VKW 11319_ Slug penetrates G-73 Enforcer. 11319_ G-73 Enforcer knocked back. 11319_ G-73 Enforcer destroyed. 11320_ Critical hit (Burn: +37). 11321_ M-36 Artificer repairs G-67 Veteran. 11323_ G-67 Veteran knocked back. 11323_ G-67 Veteran suffers critical hit (Blast). 11323_ G-67 Veteran destroyed. 11326_ Destroyed Unknown Protection. 11326_ Destroyed Backup Propulsion VII. 11326_ Y-72 Warden destroyed. 11328_ Hardcell Cannon destroyed. 11329_ Flexi-carbon Leg destroyed. 11332_ M-36 Artificer repairs B-74 Champion. 11334_ System corrupted: Component data lost. Map ----- +----------------------------------------------------+ | #?????????????????????????????????????????? | | #####?????????????????????????????????????????? | | "#?????????????????????????????????????????????? | | "#?????????????????????????????????????????????? | | ##?????????????????? ????????????????????????? | | #??????????????????? ????????????????????????? | | ########?????????????? ????????????????????????? | | ??## #?????????????? ????????????????????????? | | ?## #?????????????? ????????????????????????? | | ## #?????????????? ????????????????????????? | | #?????###?????? ????????????????????????? | | #?????? ?????? ????????????????????????? | | ## #????? #?????# #####????????????????????? | | ### #?????? ?????# #g ????????????????????? | | #?# #??????# ?????# #g ????????????????????? | | ??# ##### ### ????# # ????#???????????????? | | ??## ##?# ? ??### # #?## #???????????????? | | ???####??# #???# ### bm# ; # #????? ?????????? | | ?????????# #???# # #% #### ????????? | | ????###### #???## # #;;;= %% % ????????? | | ##### ## #????### ### % %%%%% " #?????????? | | # ######## ####%/%=g[*%##???????????????? | | ##;;%!/%*g #???????????????? | | ##### ############%*%=!% % ##??????????????? | | ???# #???????## ! /% % #??????????????? | | ??# #???????# @ g #?????????? | | ??# ##???????# ????????? | | ??## ##????????# ????????? | | ???# ###??????? ?????????? | | ???#####??????? #### ?????????? | | ????????????? #; ####???##### ?????????? | | ????????????## ;#;# #######??????????????????????? | | ?????????????##?####?????????????????????????????? | | ?????????????????????????????????????????????????? | | ?????????????????????????????????????????????????? | | ?????????????????????????????????????????????????? | | ?????????????????????????????????????????????????? | | ?????????????????????????????????????????????????? | | ?????????????????????????????????????????????????? | | ?????????????????????????????????????????????????? | | ?????????????????????????????????????????????????? | | ?????????????????????????????????????????????????? | | ?????????????????????????????????????????????????? | | ?????????????????????????????????????????????????? | | ?????????????????????????????????????????????????? | | ?????????????????????????????????????????????????? | | ?????????????????????????????????????????????????? | | ?????????????????????????????????????????????????? | | ?????????????????????????????????????????????????? | | | +----------------------------------------------------+ Best States ------------- Heat Dissipation 112 Coolant Potential 245 Energy Generation 54 Energy Capacity 600 Matter Stores 300 Matter Capacity 300 Sight Range 16 Terrain Scan Density 10 Armor Coverage 225 Resistance: KI 35 Resistance: TH 35 Resistance: EX 35 Resistance: EM 35 Resistance: I 35 Resistance: S 35 Resistance: P 35 Propulsion Shielding 66 Utility Shielding 33 Weapon Shielding 66 Evasion (%) 55 Targeting Accuracy 25 Target Analysis 8 Matter Filtering 30 Energy Filtering 50 Kinecelleration 30 Offensive Hacking 20 Item Schematics ----------------- Hvy. Missile Launcher | -9/Storage | Hacked Robot Schematics ------------------ None Fabricated ------------ Nothing Alien Tech Used ----------------- None Achievements -------------- None Challenges ------------ None Game ------ Seed ReactiveSensorMembrane Manual? 0 Play Time 01:13:58 Cumulative 1518.3 hours Start 2023.10.23 @ 20:20:39 End 2023.10.23 @ 21:36:51 Sessions 1 Manual Loads 0 Difficulty Explorer Special Mode None Game No. 902 Rogue 62 Adventurer 0 Explorer 840 Win Type - Total 9 Types 9/0/0/0/0/0/0/0/0 Lore% 71 Gallery% 82 Achievement% 62 Wizard Run 0 Options --------- ASCII 0 Keyboard 0 Movement Mouse Keybinds 0 Fullscreen 1 Font 36/Smallcaps Map View 76x50 Tactical HUD 1 Map Filters NONE Filters NONE Steam 1 RUN: c1d5fa2b-9104-4ac2-a7f5-5d086a62dd9c